bitfinex/quotes_BTCUSD_20250916
["timestamp","ask_amount","ask_price","bid_price","bid_amount"]
[1758063039510,0.0003,116970.0,116960.0,0.5602239]
[1758063039720,0.0003,116970.0,116960.0,0.5619839]
[1758063039960,0.0013,116970.0,116960.0,0.5619839]
[1758063040394,0.0513,116970.0,116960.0,0.5619839]
[1758063040605,0.0513,116970.0,116960.0,0.5620839]
[1758063041042,0.0513,116970.0,116960.0,0.5670839]
[1758063044118,0.0013,116970.0,116960.0,0.9118264]
[1758063044331,0.0012,116970.0,116960.0,0.9118264]
[1758063045600,0.0012,116970.0,116960.0,0.6443464]
[1758063045816,0.0512,116970.0,116960.0,0.2996039]
[1758063046023,0.0012,116970.0,116960.0,0.9117864]
[1758063046895,0.0512,116970.0,116960.0,0.9117864]
[1758063047374,0.0012,116970.0,116960.0,0.9117864]
[1758063051744,0.0012,116970.0,116960.0,1.3117864]
[1758063052116,0.0012,116970.0,116960.0,1.02979512]
[1758063052337,0.0012,116970.0,116960.0,1.37453762]
[1758063054816,0.0012,116970.0,116960.0,1.10709762]
[1758063055028,0.0012,116970.0,116960.0,1.37469762]
[1758063060481,0.0012,116970.0,116960.0,1.10709762]
[1758063060677,0.0012,116970.0,116960.0,1.37457762]
[1758063060880,0.0012,116970.0,116960.0,1.02983512]
[1758063061130,0.0012,116970.0,116960.0,1.37457762]
[1758063062962,0.0012,116970.0,116960.0,1.37453762]
[1758063063661,0.0012,116970.0,116960.0,1.70125762]
[1758063063975,0.0012,116970.0,116960.0,1.70301762]
[1758063064345,0.0012,116970.0,116960.0,1.35827512]
[1758063064542,0.0012,116970.0,116960.0,1.70301762]
[1758063065843,0.0012,116970.0,116960.0,0.6558213]
[1758063066088,0.3750225,116970.0,116960.0,0.9212713]
[1758063066544,0.03028,116970.0,116960.0,0.9212713]
[1758063066775,0.03028,116970.0,116960.0,0.6538313]
[1758063067010,0.03028,116970.0,116960.0,0.9212713]
[1758063068614,0.03028,116970.0,116960.0,1.0033513]
[1758063076396,0.03028,116970.0,116960.0,1.3480938]
[1758063076597,0.03028,116970.0,116960.0,1.0288313]
[1758063076882,0.03028,116970.0,116960.0,1.3735738]
[1758063077733,0.03028,116970.0,116960.0,1.3480938]
[1758063078501,0.03028,116970.0,116960.0,1.3716038]
[1758063080519,0.03028,116970.0,116960.0,1.3735738]
[1758063084017,0.0012,116970.0,116960.0,1.3735738]
[1758063085222,0.00329,116970.0,116960.0,1.3735738]
[1758063085811,0.00329,116970.0,116960.0,1.3742938]
[1758063086189,0.0012,116970.0,116960.0,1.3742938]
[1758063086422,0.0012,116970.0,116960.0,1.0295513]
[1758063086641,0.0012,116970.0,116960.0,1.3742938]
[1758063090004,0.00329,116970.0,116960.0,1.3742938]
[1758063091400,0.00329,116970.0,116960.0,0.7613913]
[1758063091581,0.03028,116970.0,116960.0,1.3487338]
[1758063091801,0.03028,116970.0,116960.0,1.0039913]
[1758063093133,0.33663498,116970.0,116960.0,0.7359113]
[1758063093386,0.33663498,116970.0,116960.0,1.0039913]
[1758063094805,0.33663498,116970.0,116960.0,1.0044713]
[1758063095445,0.50761899,116970.0,116960.0,1.0044713]
[1758063095894,0.50761899,116970.0,116960.0,0.50216145]
[1758063096111,0.30126401,116970.0,116960.0,0.77188145]
[1758063096328,0.60761899,116970.0,116960.0,0.94288008]
[1758063096549,0.30126401,116970.0,116960.0,0.94288008]
[1758063096755,0.60761899,116970.0,116960.0,0.94288008]
[1758063096965,0.30126401,116970.0,116960.0,0.94288008]
[1758063097209,0.60761899,116970.0,116960.0,0.94288008]
[1758063098321,0.30126401,116970.0,116960.0,0.94288008]
[1758063098543,0.60761899,116970.0,116960.0,0.41566]
[1758063098754,0.61629232,116970.0,116960.0,0.68546]
[1758063100416,0.61629232,116970.0,116960.0,0.08718]
[1758063100582,0.61629232,116970.0,116960.0,0.35698]
[1758063100784,0.64197724,116970.0,116960.0,0.35698]
[1758063101245,0.64207724,116970.0,116960.0,0.35698]
[1758063101997,0.33572226,116970.0,116960.0,0.35698]
[1758063102203,0.64207724,116970.0,116960.0,0.35698]
[1758063103405,0.33572226,116970.0,116960.0,0.35698]
[1758063103632,0.64207724,116970.0,116960.0,0.35698]
[1758063104291,0.64207724,116970.0,116960.0,0.08718]
[1758063104463,0.64207724,116970.0,116960.0,0.35686]
[1758063104689,0.64207724,116970.0,116960.0,0.08718]
[1758063104930,0.64207724,116970.0,116960.0,0.35686]
[1758063105154,0.33572226,116970.0,116960.0,0.35686]
[1758063105368,0.64207724,116970.0,116960.0,0.35686]
[1758063105600,0.64207724,116970.0,116960.0,0.35682]
[1758063106990,0.64207724,116970.0,116960.0,0.08718]
[1758063107190,0.64207724,116970.0,116960.0,0.27474]
[1758063107781,0.64207724,116970.0,116960.0,0.27274]
[1758063107983,0.64107724,116970.0,116960.0,0.26974]
[1758063108250,0.64207724,116970.0,116960.0,0.26974]
[1758063108666,0.64107724,116970.0,116960.0,0.26974]
[1758063108861,0.64207724,116970.0,116960.0,0.26974]
[1758063110777,0.64207724,116970.0,116960.0,0.0001]
[1758063110985,1.28843222,116970.0,116960.0,0.0001]
[1758063111188,0.17099863,116960.0,116950.0,0.11582]
[1758063111453,0.55788973,116960.0,116950.0,0.11582]
[1758063111746,0.55727361,116960.0,116950.0,0.11582]
[1758063112587,0.2766061,116960.0,116950.0,0.11582]
[1758063112796,0.58296108,116960.0,116950.0,0.11582]
[1758063116405,1.27931606,116960.0,116950.0,0.11582]
[1758063117800,1.28231606,116960.0,116950.0,0.11582]
[1758063118221,0.97596108,116960.0,116950.0,0.11582]
[1758063118423,0.97596108,116960.0,116950.0,0.0001]
[1758063121674,0.6696061,116960.0,116950.0,0.0001]
[1758063121911,0.97596108,116960.0,116950.0,0.0001]
[1758063130240,0.98194871,116960.0,116950.0,0.0001]
[1758063130645,0.97596108,116960.0,116950.0,0.0001]
[1758063130879,0.98194871,116960.0,116950.0,0.0001]
[1758063131281,0.99791662,116960.0,116950.0,0.0001]
[1758063136424,0.99792923,116960.0,116950.0,0.0001]
[1758063137644,0.99793274,116960.0,116950.0,0.0001]
[1758063141511,0.99793835,116960.0,116950.0,0.0001]
[1758063147912,0.99693835,116960.0,116950.0,0.0001]
[1758063148304,0.99793835,116960.0,116950.0,0.0001]
[1758063148789,0.99493835,116960.0,116950.0,0.0001]
[1758063148991,0.99693835,116960.0,116950.0,0.0001]
[1758063149401,0.99493835,116960.0,116950.0,0.0001]
[1758063149868,0.99593835,116960.0,116950.0,0.0001]
[1758063152082,0.99596891,116960.0,116950.0,0.0001]
[1758063153148,0.6676061,116960.0,116950.0,0.0001]
[1758063153365,0.97396108,116960.0,116950.0,0.0001]
[1758063153569,0.6676061,116960.0,116950.0,0.0001]
[1758063153778,0.46678747,116960.0,116950.0,0.50328823]
[1758063153987,0.2977861,116960.0,116950.0,0.62811373]
[1758063154146,0.2977861,116960.0,116950.0,0.89635373]
[1758063155105,0.12578747,116960.0,116950.0,0.89635373]
[1758063155315,0.12578747,116960.0,116950.0,0.98047373]
[1758063155934,0.07578747,116960.0,116950.0,0.71323373]
[1758063156141,0.07578747,116960.0,116950.0,0.98327373]
[1758063156578,0.07578747,116960.0,116950.0,0.71499373]
[1758063156754,0.12578747,116960.0,116950.0,0.6367947]
[1758063156981,0.12578747,116960.0,116950.0,0.98147373]
[1758063157197,0.29750222,116960.0,116950.0,0.98147373]
[1758063157403,0.2987361,116960.0,116950.0,0.98147373]
[1758063159372,0.12773747,116960.0,116950.0,0.98147373]
[1758063159593,0.12845359,116960.0,116950.0,0.98147373]
[1758063159776,0.12650359,116960.0,116950.0,0.98147373]
[1758063160410,0.29750222,116960.0,116950.0,0.98147373]
[1758063160621,0.2967861,116960.0,116950.0,0.98147373]
[1758063161278,0.2967861,116960.0,116950.0,0.71323373]
[1758063161504,0.2967861,116960.0,116950.0,0.98139373]
[1758063165185,0.2967861,116960.0,116950.0,0.98131373]
[1758063171179,0.2987361,116960.0,116950.0,0.98131373]
[1758063172734,0.2987361,116960.0,116950.0,0.6366347]
[1758063172917,0.2987361,116960.0,116950.0,0.98131373]
[1758063174533,0.2987361,116960.0,116950.0,0.6366347]
[1758063174733,0.2987361,116960.0,116950.0,0.98131373]
[1758063176080,0.2987361,116960.0,116950.0,0.3685547]
[1758063176258,0.3019361,116960.0,116950.0,0.98123373]
[1758063176424,0.3262861,116960.0,116950.0,0.98123373]
[1758063178445,0.3262861,116960.0,116950.0,0.98115373]
[1758063179673,0.3262861,116960.0,116950.0,0.6364747]
[1758063179902,0.3262861,116960.0,116950.0,0.98115373]
[1758063182437,0.3262861,116960.0,116950.0,0.6364747]
[1758063182668,0.3262861,116960.0,116950.0,0.98115373]
[1758063182880,0.3262861,116960.0,116950.0,0.6364747]
[1758063183105,0.3262861,116960.0,116950.0,0.98115373]
[1758063183359,0.64661513,116960.0,116950.0,0.17172145]
[1758063183492,0.67096513,116960.0,116950.0,0.43956145]
[1758063183705,0.67096513,116960.0,116950.0,0.43952145]
[1758063184585,0.67096513,116960.0,116950.0,0.43852145]
[1758063185013,0.3262861,116960.0,116950.0,0.43852145]
[1758063185221,0.3262861,116960.0,116950.0,0.43652145]
[1758063185970,0.3262861,116960.0,116950.0,0.16872145]
[1758063186182,0.67096513,116960.0,116950.0,0.43648145]
[1758063186624,0.3262861,116960.0,116950.0,0.43648145]
[1758063186825,0.67096513,116960.0,116950.0,0.43648145]
[1758063187019,0.3262861,116960.0,116950.0,0.43648145]
[1758063190358,0.67096513,116960.0,116950.0,0.43648145]
[1758063191217,0.67096513,116960.0,116950.0,0.43640145]
[1758063191825,0.3262861,116960.0,116950.0,0.43640145]
[1758063193213,0.67096513,116960.0,116950.0,0.43640145]
[1758063194913,0.67096513,116960.0,116950.0,0.3499]
[1758063196799,0.3262861,116960.0,116950.0,0.3499]
[1758063197009,0.67096513,116960.0,116950.0,0.3499]
[1758063198352,0.3262861,116960.0,116950.0,0.3499]
[1758063204968,0.3262861,116960.0,116950.0,0.69457903]
[1758063205380,0.3262861,116960.0,116950.0,0.3499]
[1758063211406,0.3262861,116960.0,116950.0,0.69457903]
[1758063213173,0.3262861,116960.0,116950.0,0.42689903]
[1758063213626,0.3262861,116960.0,116950.0,0.69457903]
[1758063213850,0.3262861,116960.0,116950.0,0.3499]
[1758063214058,0.3262861,116960.0,116950.0,0.08222]
[1758063214293,0.3262861,116960.0,116950.0,0.3499]
[1758063215135,0.3262861,116960.0,116950.0,0.08222]
[1758063215324,0.3262861,116960.0,116950.0,0.3499]
[1758063232116,0.3262861,116960.0,116950.0,0.26778]
[1758063236247,0.3262861,116960.0,116950.0,0.0001]
[1758063236451,0.63273028,116960.0,116950.0,0.26774]
[1758063236597,0.3262861,116960.0,116950.0,0.26774]
[1758063246268,0.3262861,116960.0,116950.0,0.2677]
[1758063249156,0.3262861,116960.0,116950.0,0.0001]
[1758063249393,0.3262861,116960.0,116950.0,0.2677]
[1758063253795,0.3262861,116960.0,116950.0,0.0001]
[1758063254039,0.3262861,116960.0,116950.0,0.26766]
[1758063262061,0.3262861,116960.0,116950.0,0.29217]
[1758063265122,0.2967861,116960.0,116950.0,0.29417]
[1758063265262,0.2967861,116960.0,116950.0,0.60061418]
[1758063266303,0.2967861,116960.0,116950.0,0.29417]
[1758063266933,0.2967861,116960.0,116950.0,0.60061418]
[1758063267329,0.2967861,116960.0,116950.0,0.46518325]
[1758063269534,0.2967861,116960.0,116950.0,0.60061418]
[1758063270842,0.2967861,116960.0,116950.0,0.46518325]
[1758063271188,0.12578747,116960.0,116950.0,0.56605888]
[1758063271402,0.12578747,116960.0,116950.0,0.85984888]
[1758063271830,0.12578747,116960.0,116950.0,0.59232888]
[1758063272036,0.12578747,116960.0,116950.0,0.85984888]
[1758063272461,0.12578747,116960.0,116950.0,0.86084888]
[1758063274908,0.12578747,116960.0,116950.0,0.86284888]
[1758063275880,0.12578747,116960.0,116950.0,0.90108745]
[1758063276303,0.07578747,116960.0,116950.0,0.90108745]
[1758063277314,0.12578747,116960.0,116950.0,0.63356745]
[1758063277520,0.12578747,116960.0,116950.0,0.90108745]
[1758063277723,0.12578747,116960.0,116950.0,0.63356745]
[1758063278132,0.12578747,116960.0,116950.0,0.85108745]
[1758063278341,0.12578747,116960.0,116950.0,0.84932745]
[1758063279859,0.12578747,116960.0,116950.0,0.84942745]
[1758063282075,0.2967861,116960.0,116950.0,0.84942745]
[1758063283967,0.12578747,116960.0,116950.0,0.84942745]
[1758063285564,0.2967861,116960.0,116950.0,0.84942745]
[1758063286171,0.2967861,116960.0,116950.0,0.5047447]
[1758063286380,0.2967861,116960.0,116950.0,0.84942745]
[1758063286788,0.2967861,116960.0,116950.0,0.58190745]
[1758063287006,0.3019761,116960.0,116950.0,0.4342842]
[1758063287215,0.3265761,116960.0,116950.0,0.5280947]
[1758063287444,0.3265761,116960.0,116950.0,0.87277745]
[1758063287650,0.3265761,116960.0,116950.0,0.89542745]
[1758063289246,0.2765761,116960.0,116950.0,0.7244142]
[1758063289454,0.3265761,116960.0,116950.0,0.89542745]
[1758063290623,0.3265761,116960.0,116950.0,0.5507447]
[1758063290869,0.3265761,116960.0,116950.0,0.89542745]
[1758063292175,0.3019761,116960.0,116950.0,0.89542745]
[1758063294807,0.2519761,116960.0,116950.0,0.89542745]
[1758063295024,0.3019761,116960.0,116950.0,0.89542745]
[1758063296621,0.2519761,116960.0,116950.0,0.89542745]
[1758063296830,0.3019761,116960.0,116950.0,0.89542745]
[1758063298209,0.3019761,116960.0,116950.0,0.4569342]
[1758063298425,0.3255861,116960.0,116950.0,0.7243742]
[1758063299250,0.3255861,116960.0,116950.0,0.7017242]
[1758063300015,0.3255861,116960.0,116950.0,0.7248442]
[1758063300246,0.3255861,116960.0,116950.0,0.38016145]
[1758063300433,0.3255861,116960.0,116950.0,0.7248442]
[1758063302415,0.3255861,116960.0,116950.0,0.7017242]
[1758063302826,0.3255861,116960.0,116950.0,0.87273745]
[1758063303031,0.3255861,116960.0,116950.0,0.89585745]
[1758063304019,0.2989261,116960.0,116950.0,0.89585745]
[1758063306118,0.3021161,116960.0,116950.0,0.7248442]
[1758063307420,0.3021161,116960.0,116950.0,0.89585745]
[1758063307648,0.2989261,116960.0,116950.0,0.89585745]
[1758063313917,0.3021161,116960.0,116950.0,0.5511347]
[1758063314171,0.3021161,116960.0,116950.0,0.89581745]
[1758063315111,0.2989261,116960.0,116950.0,0.89581745]
[1758063315820,0.2989261,116960.0,116950.0,0.62841745]
[1758063316041,0.2989261,116960.0,116950.0,0.89581745]
[1758063318482,0.3021161,116960.0,116950.0,0.62841745]
[1758063318741,0.3021161,116960.0,116950.0,0.89577745]
[1758063319711,0.3021161,116960.0,116950.0,0.7247642]
[1758063322551,0.3256861,116960.0,116950.0,0.7247642]
[1758063322985,0.2756861,116960.0,116950.0,0.7247642]
[1758063323189,0.3256861,116960.0,116950.0,0.7247642]
[1758063323998,0.3256861,116960.0,116950.0,0.35696145]
[1758063324816,0.3256861,116960.0,116950.0,0.38163145]
[1758063325804,0.3256861,116960.0,116950.0,0.5526447]
[1758063327059,0.3256861,116960.0,116950.0,0.38163145]
[1758063327537,0.3256861,116960.0,116950.0,0.35696145]
[1758063327934,0.3021161,116960.0,116950.0,0.5526447]
[1758063328387,0.2521161,116960.0,116950.0,0.5526447]
[1758063328609,0.3021161,116960.0,116950.0,0.5526447]
[1758063330463,0.3021161,116960.0,116950.0,0.89732745]
[1758063330881,0.3021161,116960.0,116950.0,0.7263142]
[1758063331686,0.3021161,116960.0,116950.0,0.89732745]
[1758063333448,0.3021161,116960.0,116950.0,0.5526447]
[1758063334940,0.3021161,116960.0,116950.0,0.89732745]
[1758063335793,0.3021161,116960.0,116950.0,0.5526447]
[1758063336871,0.2967861,116960.0,116950.0,0.5526447]
[1758063337336,0.2967861,116960.0,116950.0,0.2852847]
[1758063337510,0.2967861,116960.0,116950.0,0.5526047]
[1758063341206,0.3017761,116960.0,116950.0,0.5526047]
[1758063341762,0.2988261,116960.0,116950.0,0.5526047]
[1758063349359,0.3017761,116960.0,116950.0,0.2852847]
[1758063349560,0.3017761,116960.0,116950.0,0.5525647]
[1758063355548,0.2517761,116960.0,116950.0,0.5525647]
[1758063355755,0.3017761,116960.0,116950.0,0.5525647]
[1758063356012,0.2988261,116960.0,116950.0,0.5525647]
[1758063356197,0.2967861,116960.0,116950.0,0.5525647]
[1758063374771,0.12578747,116960.0,116950.0,0.5525647]
[1758063376575,0.2967861,116960.0,116950.0,0.5525647]
[1758063378769,0.3020661,116960.0,116950.0,0.2606147]
[1758063378992,0.3270361,116960.0,116950.0,0.5277747]
[1758063379436,0.3270361,116960.0,116950.0,0.5511647]
[1758063380362,0.2770361,116960.0,116950.0,0.5511647]
[1758063380599,0.3270361,116960.0,116950.0,0.5511647]
[1758063384869,0.3270361,116960.0,116950.0,0.35676145]
[1758063385317,0.3270361,116960.0,116950.0,0.5277747]
[1758063389395,0.3270361,116960.0,116950.0,0.5511647]
[1758063390145,0.3270361,116960.0,116950.0,0.2840047]
[1758063390363,0.3270361,116960.0,116950.0,0.5277747]
[1758063390800,0.3270361,116960.0,116950.0,0.35676145]
[1758063391164,0.3270361,116960.0,116950.0,0.5277747]
[1758063396092,0.3270361,116960.0,116950.0,0.35676145]
[1758063396409,0.3270361,116960.0,116950.0,0.5277747]
[1758063397448,0.3020661,116960.0,116950.0,0.08960145]
[1758063397782,0.3020661,116960.0,116950.0,0.35676145]
[1758063397783,0.3252061,116960.0,116950.0,0.35676145]
[1758063397992,0.66998317,116960.0,116950.0,0.35676145]
[1758063400381,0.3252061,116960.0,116950.0,0.08960145]
[1758063400583,0.3252061,116960.0,116950.0,0.27026]
[1758063400584,0.66998317,116960.0,116950.0,0.27026]
[1758063403340,0.3252061,116960.0,116950.0,0.27026]
[1758063403545,0.66998317,116960.0,116950.0,0.27026]
[1758063405675,1.00998317,116960.0,116950.0,0.0031]
[1758063405893,1.12663652,116960.0,116950.0,0.0031]
[1758063406125,1.12663652,116960.0,116950.0,0.003]
[1758063406315,1.41580534,116960.0,116950.0,0.003]
[1758063407298,1.41580534,116960.0,116950.0,0.001]
[1758063407498,1.41880534,116960.0,116950.0,0.001]
[1758063407702,0.17101325,116950.0,116940.0,0.0001]
[1758063407924,0.51650644,116950.0,116940.0,0.0001]
[1758063408130,0.59425032,116950.0,116940.0,0.0001]
[1758063408571,0.24957325,116950.0,116940.0,0.0001]
[1758063408951,0.27626384,116950.0,116940.0,0.0001]
[1758063409146,0.27826384,116950.0,116940.0,0.0001]
[1758063413250,0.62304091,116950.0,116940.0,0.0001]
[1758063416324,0.27826384,116950.0,116940.0,0.0001]
[1758063416520,0.62304091,116950.0,116940.0,0.0001]
[1758063418645,0.32826384,116950.0,116940.0,0.34487707]
[1758063420195,0.30191384,116950.0,116940.0,0.36757707]
[1758063420375,0.29980384,116950.0,116940.0,0.36757707]
[1758063420807,0.30483384,116950.0,116940.0,0.36757707]
[1758063421236,0.30383384,116950.0,116940.0,0.36757707]
[1758063421435,0.30483384,116950.0,116940.0,0.36757707]
[1758063421635,0.30283384,116950.0,116940.0,0.36757707]
[1758063422005,0.32724384,116950.0,116940.0,0.36757707]
[1758063422441,0.29976384,116950.0,116940.0,0.53860494]
[1758063422911,0.29780384,116950.0,116940.0,0.53860494]
[1758063424034,0.07679059,116950.0,116940.0,0.96988346]
[1758063424259,0.02679059,116950.0,116940.0,0.96988346]
[1758063424497,0.0511,116950.0,116940.0,0.96988346]
[1758063424939,0.0501,116950.0,116940.0,0.96988346]
[1758063426241,0.0501,116950.0,116940.0,0.97188346]
[1758063426465,0.0001,116950.0,116940.0,0.97188346]
[1758063426900,0.0001,116950.0,116940.0,0.97288346]
[1758063429288,0.0501,116950.0,116940.0,0.97288346]
[1758063429470,0.0501,116950.0,116940.0,1.24000346]
[1758063430512,0.0001,116950.0,116940.0,1.24000346]
[1758063430921,0.0501,116950.0,116940.0,1.24000346]
[1758063433269,0.0501,116950.0,116940.0,0.97288346]
[1758063433453,0.0501,116950.0,116940.0,1.24000346]
[1758063433734,0.0501,116950.0,116940.0,0.97288346]
[1758063433952,0.0501,116950.0,116940.0,1.24000346]
[1758063434828,0.0501,116950.0,116940.0,0.55044932]
[1758063435061,0.0501,116950.0,116940.0,0.89522639]
[1758063435293,0.22111325,116950.0,116940.0,0.55044932]
[1758063435523,0.22111325,116950.0,116940.0,0.89522639]
[1758063435972,0.22316325,116950.0,116940.0,0.60540639]
[1758063436225,0.24980325,116950.0,116940.0,0.87252639]
[1758063436635,0.24980325,116950.0,116940.0,0.89523639]
[1758063436840,0.24980325,116950.0,116940.0,0.87252639]
[1758063437504,0.24980325,116950.0,116940.0,0.89523639]
[1758063438113,0.22623325,116950.0,116940.0,0.97735639]
[1758063439746,0.22623325,116950.0,116940.0,0.71023639]
[1758063439968,0.22623325,116950.0,116940.0,0.97735639]
[1758063440214,0.22623325,116950.0,116940.0,0.36545932]
[1758063440469,0.22623325,116950.0,116940.0,0.97731639]
[1758063442008,0.22623325,116950.0,116940.0,0.71023639]
[1758063442256,0.22623325,116950.0,116940.0,0.97731639]
[1758063444105,0.22623325,116950.0,116940.0,0.34274932]
[1758063444325,0.24980325,116950.0,116940.0,0.60982932]
[1758063444532,0.24980325,116950.0,116940.0,0.97731639]
[1758063447785,0.24980325,116950.0,116940.0,0.89519639]
[1758063452663,0.24980325,116950.0,116940.0,0.97731639]
[1758063455893,0.0501,116950.0,116940.0,0.97731639]
[1758063457905,0.0501,116950.0,116940.0,0.93897814]
[1758063465757,0.0501,116950.0,116940.0,0.67189814]
[1758063465939,0.0501,116950.0,116940.0,0.93893814]
[1758063466154,0.0501,116950.0,116940.0,0.67189814]
[1758063466390,0.0501,116950.0,116940.0,0.93893814]
[1758063472266,0.0501,116950.0,116940.0,0.67189814]
[1758063472476,0.0501,116950.0,116940.0,0.93893814]
[1758063480942,0.05,116950.0,116940.0,0.93893814]
[1758063483627,0.05,116950.0,116940.0,0.67189814]
[1758063483807,0.05,116950.0,116940.0,0.93889814]
[1758063486558,0.05,116950.0,116940.0,0.67189814]
[1758063486832,0.05,116950.0,116940.0,0.93889814]
[1758063489618,0.07578494,116960.0,116950.0,0.17101325]
[1758063489826,0.07578494,116960.0,116950.0,0.60574484]
[1758063489827,0.02578494,116960.0,116950.0,0.60574484]
[1758063490024,0.02578494,116960.0,116950.0,0.58874352]
[1758063490256,0.07578494,116960.0,116950.0,0.58874352]
[1758063490544,0.0501,116960.0,116950.0,0.58874352]
[1758063490722,0.0511,116960.0,116950.0,0.58874352]
[1758063491276,0.0531,116960.0,116950.0,0.58874352]
[1758063492330,0.0521,116960.0,116950.0,0.58874352]
[1758063492529,0.0531,116960.0,116950.0,0.65332909]
[1758063492756,0.0511,116960.0,116950.0,0.65332909]
[1758063492968,0.0521,116960.0,116950.0,0.65332909]
[1758063493622,0.0521,116960.0,116950.0,0.92028909]
[1758063493837,0.0521,116960.0,116950.0,0.92907056]
[1758063494406,0.0521,116960.0,116950.0,0.35567174]
[1758063494615,0.0521,116960.0,116950.0,0.92907056]
[1758063497729,0.0521,116960.0,116950.0,0.86448499]
[1758063498540,0.22817863,116960.0,116950.0,0.08660145]
[1758063498745,0.08014,116960.0,116950.0,0.5245747]
[1758063499357,0.25113863,116960.0,116950.0,0.5492647]
[1758063499597,0.25113863,116960.0,116950.0,0.6313847]
[1758063500011,0.08014,116960.0,116950.0,0.93782352]
[1758063500887,0.25113863,116960.0,116950.0,0.93782352]
[1758063501113,0.25113863,116960.0,116950.0,0.94629093]
[1758063501335,0.25113863,116960.0,116950.0,0.6313847]
[1758063501722,0.27682168,116960.0,116950.0,0.6313847]
[1758063503592,0.27682168,116960.0,116950.0,0.93782352]
[1758063504171,0.27682168,116960.0,116950.0,0.94648723]
[1758063504675,0.27682168,116960.0,116950.0,0.6313847]
[1758063504903,0.27682168,116960.0,116950.0,0.93782352]
[1758063509917,0.25386168,116960.0,116950.0,0.93782352]
[1758063510376,0.25090168,116960.0,116950.0,0.93782352]
[1758063510888,0.25090168,116960.0,116950.0,0.6313847]
[1758063511110,0.27682168,116960.0,116950.0,0.91313352]
[1758063511319,0.27682168,116960.0,116950.0,0.93782352]
[1758063512411,0.10582305,116960.0,116950.0,0.93782352]
[1758063513678,0.27682168,116960.0,116950.0,0.93782352]
[1758063514289,0.25386168,116960.0,116950.0,0.93782352]
[1758063516595,0.27806168,116960.0,116950.0,0.93782352]
[1758063516929,0.27806168,116960.0,116950.0,0.67086352]
[1758063517147,0.27806168,116960.0,116950.0,0.93778352]
[1758063517984,0.27806168,116960.0,116950.0,0.97605841]
[1758063518214,0.27806168,116960.0,116950.0,0.95136841]
[1758063520169,0.28206168,116960.0,116950.0,0.95136841]
[1758063520326,0.28206168,116960.0,116950.0,0.68444841]
[1758063520534,0.28206168,116960.0,116950.0,0.95132841]
[1758063521718,0.28206168,116960.0,116950.0,0.6066147]
[1758063521862,0.28206168,116960.0,116950.0,0.95132841]
[1758063522761,0.28206168,116960.0,116950.0,0.6066147]
[1758063522971,0.28206168,116960.0,116950.0,0.95132841]
[1758063523720,0.33206168,116960.0,116950.0,0.95132841]
[1758063526833,0.33206168,116960.0,116950.0,0.6066147]
[1758063527093,0.33206168,116960.0,116950.0,0.95132841]
[1758063527969,0.33206168,116960.0,116950.0,0.97486841]
[1758063528628,0.33206168,116960.0,116950.0,0.6301547]
[1758063528831,0.33206168,116960.0,116950.0,0.97486841]
[1758063529036,0.33206168,116960.0,116950.0,0.95132841]
[1758063532884,0.16106305,116960.0,116950.0,0.97486841]
[1758063533082,0.13757917,116960.0,116950.0,0.97486841]
[1758063533349,0.3085778,116960.0,116950.0,0.97486841]
[1758063533551,0.30786168,116960.0,116950.0,0.97486841]
[1758063534255,0.13390305,116960.0,116950.0,0.97486841]
[1758063534506,0.13178305,116960.0,116950.0,0.97486841]
[1758063536583,0.13178305,116960.0,116950.0,0.6301547]
[1758063536790,0.13178305,116960.0,116950.0,0.97486841]
[1758063555406,0.13178305,116960.0,116950.0,0.70798841]
[1758063555619,0.13381305,116960.0,116950.0,0.97478841]
[1758063556115,0.13703305,116960.0,116950.0,0.97478841]
[1758063558316,0.13381305,116960.0,116950.0,0.97478841]
[1758063559270,0.13703305,116960.0,116950.0,0.97478841]
[1758063560057,0.13703305,116960.0,116950.0,0.3632747]
[1758063560282,0.13703305,116960.0,116950.0,0.95120841]
[1758063560494,0.16030305,116960.0,116950.0,0.95120841]
[1758063561096,0.16030305,116960.0,116950.0,0.68444841]
[1758063561297,0.16030305,116960.0,116950.0,0.95120841]
[1758063562780,0.16030305,116960.0,116950.0,0.3397347]
[1758063562982,0.16101917,116960.0,116950.0,0.95120841]
[1758063564042,0.16101917,116960.0,116950.0,0.6064947]
[1758063564253,0.16101917,116960.0,116950.0,0.95120841]
[1758063569441,0.16101917,116960.0,116950.0,0.6064947]
[1758063569657,0.16101917,116960.0,116950.0,0.95120841]
[1758063574115,0.16101917,116960.0,116950.0,0.6064947]
[1758063574319,0.16101917,116960.0,116950.0,0.95120841]
[1758063577932,0.16101917,116960.0,116950.0,0.91290478]
[1758063586564,0.16101917,116960.0,116950.0,0.6064947]
[1758063586773,0.16101917,116960.0,116950.0,0.91290478]
[1758063587391,0.16101917,116960.0,116950.0,0.93649478]
[1758063587603,0.13703305,116960.0,116950.0,0.93649478]
[1758063589808,0.16173305,116960.0,116950.0,0.93649478]
[1758063590416,0.13703305,116960.0,116950.0,0.93649478]
[1758063592397,0.13703305,116960.0,116950.0,0.6300847]
[1758063592692,0.13703305,116960.0,116950.0,0.93649478]
[1758063593734,0.13381305,116960.0,116950.0,0.6300847]
[1758063593939,0.13381305,116960.0,116950.0,0.93649478]
[1758063594986,0.13692305,116960.0,116950.0,0.66973478]
[1758063595195,0.13692305,116960.0,116950.0,0.93637478]
[1758063595554,0.13381305,116960.0,116950.0,0.93637478]
[1758063595755,0.13692305,116960.0,116950.0,0.93637478]
[1758063598126,0.13692305,116960.0,116950.0,0.6299647]
[1758063598310,0.13692305,116960.0,116950.0,0.93637478]
[1758063600275,0.13381305,116960.0,116950.0,0.93637478]
[1758063600795,0.13178305,116960.0,116950.0,0.93637478]
[1758063601851,0.13384305,116960.0,116950.0,0.93637478]
[1758063602593,0.13178305,116960.0,116950.0,0.93637478]
[1758063602912,0.13384305,116960.0,116950.0,0.93637478]
[1758063603541,0.13178305,116960.0,116950.0,0.93637478]
[1758063606028,0.13178305,116960.0,116950.0,0.6299647]
[1758063606264,0.13386305,116960.0,116950.0,0.6299647]
[1758063606508,0.13706305,116960.0,116950.0,0.6299647]
[1758063606742,0.13706305,116960.0,116950.0,0.93637478]
[1758063606957,0.13606305,116960.0,116950.0,0.93637478]
[1758063607171,0.13706305,116960.0,116950.0,0.93637478]
[1758063607480,0.13706305,116960.0,116950.0,0.6299647]
[1758063607691,0.13606305,116960.0,116950.0,0.93637478]
[1758063607978,0.13706305,116960.0,116950.0,0.93637478]
[1758063608914,0.13178305,116960.0,116950.0,0.93637478]
[1758063610283,0.13178305,116960.0,116950.0,0.66973478]
[1758063610536,0.13178305,116960.0,116950.0,0.93633478]
[1758063614307,0.13386305,116960.0,116950.0,0.93633478]
[1758063615181,0.13706305,116960.0,116950.0,0.93633478]
[1758063616190,0.13706305,116960.0,116950.0,0.3633247]
[1758063616421,0.16077305,116960.0,116950.0,0.93633478]
[1758063616825,0.13706305,116960.0,116950.0,0.93633478]